bitfinex/quotes_SOLUSD_20241111
["timestamp","ask_amount","ask_price","bid_price","bid_amount"]
[1731288274980,43.776884,210.15,210.08,14.94112889]
[1731288275577,23.776884,210.15,210.08,14.94112889]
[1731288276091,23.776884,210.15,210.08,19.70102889]
[1731288276501,20.0,210.17,210.08,31.60122889]
[1731288276675,20.0,210.17,210.1,14.94112889]
[1731288277488,24.7581,210.17,210.1,19.70072889]
[1731288278088,14.94112889,210.16,210.1,4.7596]
[1731288278599,24.7581,210.17,210.1,4.7596]
[1731288279805,24.7581,210.17,210.1,19.70072889]
[1731288283290,4.7576,210.19,210.12,14.94112889]
[1731288283582,14.94112889,210.2,210.12,14.94112889]
[1731288283583,19.69852889,210.2,210.12,14.94112889]
[1731288284298,14.94112889,210.18,210.1,31.59972889]
[1731288284500,24.7574,210.2,210.14,14.94112889]
[1731288286884,24.7574,210.2,210.13,4.7589]
[1731288287095,24.7574,210.2,210.12,19.70022889]
[1731288287391,14.94112889,210.17,210.11,11.8981]
[1731288287990,14.94112889,210.17,210.11,16.6575]
[1731288289397,4.7579,210.18,210.11,31.59862889]
[1731288289785,38.71801289,210.17,210.11,11.8981]
[1731288291501,23.776884,210.17,210.11,14.94112889]
[1731288291689,4.7581,210.17,210.11,14.94112889]
[1731288292905,4.7581,210.17,210.11,19.70042889]
[1731288293286,179.8,210.2,210.13,14.94112889]
[1731288294084,20.0,210.2,210.13,14.94112889]
[1731288294488,24.7574,210.2,210.13,14.94112889]
[1731288295214,14.94112889,210.15,210.07,4.7601]
[1731288295508,14.94112889,210.13,210.06,33.1674]
[1731288295710,23.776884,210.12,210.06,16.506]
[1731288296016,23.776884,210.08,210.01,42.76832889]
[1731288296189,38.71801289,210.08,210.01,42.76832889]
[1731288296507,38.71801289,210.08,210.01,47.52992889]
[1731288297290,23.776884,210.08,210.01,47.52992889]
[1731288297600,19.70102889,210.09,210.03,14.94112889]
[1731288297601,14.94112889,210.09,210.03,14.94112889]
[1731288298591,23.776884,210.1,210.04,4.7609]
[1731288299004,43.47741289,210.11,210.04,4.7609]
[1731288299190,19.70052889,210.11,210.04,4.7609]
[1731288299392,14.94112889,210.11,210.04,4.7609]
[1731288300791,14.94112889,210.09,210.02,4.7612]
[1731288300997,14.94112889,210.09,210.02,16.6648]
[1731288301500,14.94112889,210.09,209.98,6.3759]
[1731288301501,14.94112889,210.07,210.0,4.7617]
[1731288302905,14.94112889,210.07,209.99,14.94112889]
[1731288303095,14.94112889,210.04,209.98,6.3759]
[1731288303411,14.94112889,210.03,209.97,11.9063]
[1731288303715,14.94112889,210.05,209.97,31.60992889]
[1731288303914,159.8,210.06,209.99,14.94112889]
[1731288304116,159.8,210.06,210.04,14.94112889]
[1731288304321,159.8,210.12,210.04,19.70192889]
[1731288304497,14.94112889,210.13,210.06,14.94112889]
[1731288304817,14.94112889,210.11,210.04,11.9024]
[1731288305505,19.69962889,210.15,210.08,14.94112889]
[1731288305701,14.94112889,210.13,210.06,14.94112889]
[1731288306101,14.94112889,210.13,210.05,20.0]
[1731288306401,19.69992889,210.14,210.06,19.70142889]
[1731288306722,14.94112889,210.12,210.09,10.0]
[1731288306899,19.69992889,210.14,210.09,10.0]
[1731288307301,19.69942889,210.16,210.09,10.0]
[1731288307602,20.0,210.15,210.09,10.0]
[1731288307796,20.0,210.15,210.1,14.94112889]
[1731288308205,24.7583,210.16,210.1,14.94112889]
[1731288308717,159.8,210.17,210.1,14.94112889]
[1731288308923,174.74112889,210.18,210.1,14.94112889]
[1731288309600,159.8,210.23,210.16,14.94112889]
[1731288309801,14.94112889,210.26,210.19,14.94112889]
[1731288309995,14.94112889,210.26,210.17,14.94112889]
[1731288310195,14.94112889,210.24,210.17,14.94112889]
[1731288310718,4.7566,210.23,210.17,14.94112889]
[1731288310906,4.7564,210.25,210.17,14.94112889]
[1731288311105,24.7564,210.25,210.17,14.94112889]
[1731288311712,20.0,210.23,210.17,14.94112889]
[1731288311916,14.94112889,210.22,210.15,14.94112889]
[1731288312121,20.0,210.19,210.13,14.94112889]
[1731288312303,14.94112889,210.18,210.11,21.04612889]
[1731288312503,34.94112889,210.19,210.11,21.04612889]
[1731288312894,19.69892889,210.18,210.11,14.94112889]
[1731288313098,20.0,210.15,210.09,21.8992]
[1731288313312,34.94112889,210.13,210.09,10.0]
[1731288313514,4.9578,210.18,210.09,10.0]
[1731288313515,34.94112889,210.1,210.09,10.0]
[1731288313718,58.71801289,210.1,210.09,10.0]
[1731288314720,218.51801289,210.1,210.09,10.0]
[1731288314926,227.50395765,210.1,210.09,10.0]
[1731288315101,72.66355765,210.1,210.09,10.0]
[1731288317003,62.56355765,210.1,210.09,10.0]
[1731288317208,62.46355765,210.1,210.09,10.0]
[1731288318227,38.68667365,210.1,210.09,10.0]
[1731288318519,23.92707365,210.15,210.09,10.0]
[1731288318727,23.92707365,210.14,210.09,10.0]
[1731288319421,183.72707365,210.14,210.09,10.0]
[1731288319926,159.8,210.14,210.09,33.92707365]
[1731288320116,159.8,210.14,210.09,38.68677365]
[1731288320315,4.7581,210.17,210.09,38.68677365]
[1731288320522,24.7581,210.17,210.09,38.68677365]
[1731288320715,24.7581,210.17,210.11,23.92707365]
[1731288320912,4.7577,210.19,210.11,23.92707365]
[1731288321112,23.92707365,210.22,210.13,23.92707365]
[1731288321424,28.68407365,210.22,210.15,23.92707365]
[1731288322005,28.68407365,210.22,210.13,28.68587365]
[1731288322620,20.0,210.21,210.13,28.68587365]
[1731288322831,20.0,210.21,210.13,23.92707365]
[1731288323004,23.92707365,210.2,210.13,23.92707365]
[1731288323426,23.92707365,210.16,210.09,10.0]
[1731288323608,23.92707365,210.14,210.09,10.0]
[1731288323815,23.92707365,210.12,210.09,10.0]
[1731288324212,20.0,210.13,210.09,10.0]
[1731288324412,159.8,210.16,210.09,50.58637365]
[1731288324724,20.0,210.17,210.09,45.82667365]
[1731288325232,23.92707365,210.14,210.09,10.0]
[1731288325433,43.776884,210.15,210.09,10.0]
[1731288325637,20.0,210.15,210.09,33.92707365]
[1731288326136,4.7587,210.14,210.09,10.0]
[1731288326640,28.68577365,210.14,210.09,10.0]
[1731288328115,20.0,210.13,210.09,10.0]
[1731288328342,28.68617365,210.12,210.09,10.0]
[1731288328638,67.90395765,210.1,210.09,10.0]
[1731288329128,91.8310313,210.1,210.09,10.0]
[1731288329921,96.5906313,210.1,210.09,10.0]
[1731288331142,0.1,210.05,209.92,16.1392]
[1731288331335,23.92707365,209.96,209.89,6.5584]
[1731288332111,23.92707365,209.94,209.86,23.92707365]
[1731288332423,23.92707365,209.9,209.84,6.5584]
[1731288332812,23.92707365,209.9,209.82,40.60747365]
[1731288333214,23.92707365,209.9,209.82,35.84157365]
[1731288334015,28.69127365,209.9,209.82,35.84157365]
[1731288334210,23.92707365,209.86,209.79,6.5584]
[1731288334412,23.92707365,209.8,209.74,22.1788]
[1731288334637,23.92707365,209.79,209.74,6.5367]
[1731288335733,23.92707365,209.79,209.71,35.84817365]
[1731288335933,0.2,209.83,209.71,11.9211]
[1731288335934,23.92707365,209.77,209.71,11.9211]
[1731288336237,23.92707365,209.78,209.71,11.9211]
[1731288336410,23.92707365,209.79,209.71,35.84817365]
[1731288336617,23.92707365,209.8,209.72,23.92707365]
[1731288337025,20.0,209.8,209.73,23.92707365]
[1731288337337,20.0,209.8,209.74,23.92707365]
[1731288337535,23.92707365,209.83,209.75,23.92707365]
[1731288337836,23.92707365,209.84,209.77,23.92707365]
[1731288338616,23.92707365,209.84,209.75,23.92707365]
[1731288338822,23.92707365,209.84,209.76,4.7673]
[1731288339138,28.69257365,209.84,209.75,23.92707365]
[1731288342224,20.0,209.83,209.75,23.92707365]
[1731288342423,23.92707365,209.81,209.73,23.92707365]
[1731288342623,183.576884,209.8,209.73,23.92707365]
[1731288342930,183.72707365,209.83,209.75,23.92707365]
[1731288343519,159.8,209.83,209.77,23.92707365]
[1731288343729,139.8,209.83,209.77,23.92707365]
[1731288343932,163.72707365,209.83,209.75,23.92707365]
[1731288344437,4.7659,209.82,209.75,23.92707365]
[1731288345334,182.78599565,209.83,209.75,28.69447365]
[1731288345640,163.72707365,209.83,209.75,28.69447365]
[1731288345836,139.8,209.83,209.77,23.92707365]
[1731288346424,139.8,209.83,209.77,28.69397365]
[1731288347122,168.49297365,209.83,209.75,35.84597365]
[1731288347443,28.69297365,209.83,209.75,35.84597365]
[1731288347944,28.69297365,209.83,209.75,23.92707365]
[1731288348234,23.92707365,209.81,209.73,23.92707365]
[1731288349130,28.69337365,209.81,209.73,23.92707365]
[1731288354417,23.92707365,209.79,209.71,23.92707365]
[1731288354617,23.92707365,209.75,209.66,4.7694]
[1731288354937,23.92707365,209.74,209.66,23.92707365]
[1731288355244,23.92707365,209.75,209.67,23.92707365]
[1731288355439,23.92707365,209.74,209.67,23.92707365]
[1731288356936,4.7675,209.75,209.69,23.92707365]
[1731288357337,4.7675,209.75,209.67,23.92707365]
[1731288357536,23.92707365,209.74,209.67,23.92707365]
[1731288358036,4.768,209.73,209.67,23.92707365]
[1731288358842,4.768,209.73,209.68,23.92707365]
[1731288359853,28.69477365,209.75,209.68,23.92707365]
[1731288360652,4.7677,209.75,209.68,23.92707365]
[1731288360843,28.69477365,209.75,209.68,23.92707365]
[1731288361041,8.69477365,209.75,209.68,23.92707365]
[1731288361835,163.72707365,209.77,209.7,23.92707365]
[1731288362045,23.92707365,209.77,209.7,23.92707365]
[1731288362257,28.69387365,209.79,209.72,23.92707365]
[1731288363154,28.69387365,209.79,209.7,23.92707365]
[1731288363361,23.92707365,209.77,209.68,23.92707365]
[1731288363652,4.7668,209.79,209.72,23.92707365]
[1731288364032,4.7668,209.79,209.7,23.92707365]
[1731288364033,23.92707365,209.76,209.7,23.92707365]
[1731288364451,23.92707365,209.78,209.7,23.92707365]
[1731288364638,4.7668,209.79,209.72,23.92707365]
[1731288365144,24.7668,209.79,209.72,23.92707365]
[1731288365354,23.92707365,209.8,209.72,23.92707365]
[1731288365654,4.90146678,209.81,209.78,23.92707365]
[1731288365952,39.98987365,209.86,209.78,23.92707365]
[1731288366541,44.75507365,209.86,209.78,23.92707365]
[1731288366951,23.92707365,209.84,209.76,23.92707365]
[1731288367150,23.92707365,209.82,209.72,23.92707365]
[1731288367451,23.92707365,209.8,209.72,23.92707365]
[1731288367763,23.92707365,209.82,209.74,23.92707365]
[1731288368756,28.69317365,209.82,209.74,23.92707365]
[1731288369159,4.7661,209.82,209.79,20.0]
[1731288369335,28.69257365,209.84,209.79,20.0]
[1731288369659,4.7653,209.85,209.79,20.0]
[1731288371467,23.92707365,209.84,209.79,20.0]
[1731288372339,4.7657,209.83,209.79,20.0]
[1731288372541,23.92707365,209.8,209.79,20.0]
[1731288372750,23.92707365,209.82,209.79,20.0]
[1731288374143,139.8,209.81,209.79,20.0]
[1731288374539,144.5663,209.81,209.79,20.0]
[1731288374743,139.8,209.81,209.79,20.0]
[1731288377240,139.8,209.81,209.79,33.62472921]
[1731288377651,4.765,209.87,209.8,13.62472921]
[1731288377884,4.765,209.87,209.81,13.62472921]
[1731288378040,4.90099784,209.86,209.81,13.62472921]
[1731288378359,4.90099784,209.86,209.79,38.39122921]
[1731288378753,9.66609784,209.86,209.8,13.62472921]
[1731288379465,4.90099784,209.86,209.83,13.62472921]
[1731288379960,4.90099784,209.86,209.85,13.62472921]
[1731288380161,13.62472921,209.91,209.84,13.62472921]
[1731288380363,4.7644,209.89,209.84,13.62472921]
[1731288381454,23.776884,209.88,209.82,13.62472921]
[1731288381860,23.776884,209.86,209.82,13.62472921]
[1731288382167,23.776884,209.86,209.8,13.62472921]
[1731288382472,23.776884,209.86,209.81,13.62472921]
[1731288383150,28.541984,209.86,209.81,13.62472921]
[1731288383547,23.776884,209.86,209.82,13.62472921]
[1731288383947,181.96671321,209.86,209.79,33.62472921]
[1731288384750,23.776884,209.84,209.79,33.62472921]
[1731288385149,23.776884,209.84,209.82,13.62472921]
[1731288385560,139.8,209.85,209.83,13.62472921]
[1731288385846,139.8,209.85,209.84,13.62472921]
[1731288386651,139.8,209.85,209.83,13.62472921]
[1731288386860,139.8,209.85,209.84,13.62472921]
[1731288388270,139.8,209.85,209.82,13.62472921]
[1731288388868,4.7652,209.86,209.8,13.62472921]
[1731288390458,4.7652,209.86,209.79,36.683]
[1731288390459,23.776884,209.87,209.82,13.62472921]
[1731288391869,28.541884,209.87,209.82,13.62472921]
[1731288392170,28.541884,209.87,209.8,13.62472921]
[1731288393763,23.776884,209.83,209.79,20.0]
[1731288393962,13.62472921,209.81,209.79,20.0]
[1731288394297,197.20161321,209.8,209.79,20.0]
[1731288395773,91.32754242,209.8,209.79,13.8075]
[1731288396257,77.70281321,209.8,209.79,13.8075]
[1731288398273,91.32754242,209.8,209.79,13.8075]
[1731288399867,91.32754242,209.8,209.65,11.9244]
[1731288399868,43.776884,209.77,209.68,13.62472921]
[1731288400072,23.776884,209.74,209.68,13.62472921]
[1731288401882,23.776884,209.72,209.68,13.62472921]
[1731288403078,145.9925,209.74,209.64,6.1947]
[1731288403079,145.9925,209.74,209.71,13.62472921]
[1731288403467,145.9925,209.74,209.68,16.6919]
[1731288403468,145.9925,209.74,209.73,13.62472921]
[1731288403781,4.7672,209.77,209.73,13.62472921]
[1731288404671,23.776884,209.76,209.73,13.62472921]
[1731288404876,20.0,209.78,209.73,13.62472921]
[1731288404877,145.9925,209.78,209.73,13.62472921]
[1731288405970,23.776884,209.77,209.73,13.62472921]
[1731288406465,28.543984,209.77,209.73,13.62472921]
[1731288408794,20.0,209.82,209.75,13.62472921]
[1731288408986,165.9925,209.82,209.77,13.62472921]
[1731288409312,145.9925,209.82,209.77,13.62472921]
[1731288409470,150.7584,209.83,209.75,13.62472921]
[1731288409666,13.62472921,209.82,209.75,13.62472921]
[1731288410089,28.543084,209.81,209.75,13.62472921]
[1731288410275,28.543084,209.81,209.73,13.62472921]
[1731288410466,20.0,209.8,209.73,13.62472921]
[1731288410669,150.7584,209.83,209.77,13.62472921]
[1731288412092,23.776884,209.82,209.77,13.62472921]
[1731288412681,150.7584,209.83,209.77,13.62472921]
[1731288412682,4.7659,209.83,209.77,13.62472921]
[1731288413997,23.776884,209.82,209.77,13.62472921]
[1731288414175,28.542984,209.82,209.77,13.62472921]
[1731288414495,28.542984,209.82,209.75,13.62472921]
[1731288416295,42.16771321,209.82,209.73,30.28192921]
[1731288416478,42.16771321,209.82,209.75,13.62472921]
[1731288418195,28.542984,209.82,209.75,13.62472921]
[1731288418595,23.776884,209.8,209.75,13.62472921]
[1731288418807,23.776884,209.8,209.77,13.62472921]
[1731288420186,23.776884,209.8,209.75,25.54362921]
[1731288420382,28.543284,209.8,209.75,25.54362921]
[1731288420586,23.776884,209.8,209.75,25.54362921]
[1731288421081,28.543284,209.8,209.75,25.54362921]
[1731288422797,28.543284,209.8,209.75,13.62472921]
[1731288424397,145.9925,209.81,209.77,13.62472921]
[1731288424603,23.776884,209.81,209.77,13.62472921]
[1731288425199,28.543084,209.81,209.77,13.62472921]
[1731288425396,164.51910127,209.86,209.77,13.62472921]
[1731288425704,23.776884,209.84,209.77,13.62472921]
[1731288425892,37.40161321,209.84,209.77,13.62472921]
[1731288426086,13.62472921,209.82,209.75,13.62472921]
[1731288426295,23.776884,209.81,209.73,30.28192921]
[1731288426989,23.776884,209.81,209.75,13.62472921]
[1731288427182,4.7664,209.8,209.75,13.62472921]
[1731288427392,13.62472921,209.84,209.77,13.62472921]
[1731288427597,13.62472921,209.84,209.73,37.88286825]
[1731288427598,4.7657,209.84,209.79,13.62472921]
[1731288428699,18.39042921,209.84,209.75,13.62472921]
[1731288428904,23.776884,209.81,209.73,42.20192921]
[1731288429404,13.62472921,209.8,209.73,13.62472921]
[1731288429701,23.776884,209.79,209.73,13.62472921]
[1731288429892,169.769384,209.79,209.71,13.62472921]
[1731288430481,169.769384,209.79,209.73,13.62472921]
[1731288430688,4.7668,209.78,209.73,13.62472921]
[1731288431601,145.9925,209.79,209.75,13.62472921]
[1731288432203,150.7592,209.79,209.75,13.62472921]
[1731288432579,150.7592,209.79,209.73,13.62472921]
[1731288435701,159.61722921,209.78,209.71,13.62472921]
[1731288436511,4.7671,209.77,209.71,13.62472921]
[1731288436705,150.7596,209.77,209.71,13.62472921]
[1731288437211,145.9925,209.77,209.75,13.62472921]
[1731288439406,145.9925,209.77,209.73,13.62472921]
[1731288439608,150.7597,209.77,209.71,13.62472921]
[1731288442216,4.7672,209.77,209.71,13.62472921]
[1731288442716,183.39411321,209.76,209.66,16.6934]
[1731288442916,145.9925,209.75,209.67,13.62472921]
[1731288443091,183.39411321,209.74,209.65,13.62472921]
[1731288443594,145.9925,209.73,209.65,13.62472921]
[1731288443997,13.62472921,209.71,209.64,13.62472921]
[1731288444194,13.62472921,209.65,209.54,6.5388]
[1731288444417,13.62472921,209.62,209.54,13.62472921]
[1731288444602,4.7707,209.61,209.52,27.9831]
[1731288444802,4.7707,209.61,209.41,0.91650461]
[1731288444803,13.62472921,209.58,209.46,16.0515]
[1731288444993,13.62472921,209.57,209.5,13.7239856]
[1731288445191,169.769384,209.56,209.47,11.9345]
[1731288445395,169.769384,209.56,209.5,13.62472921]
[1731288446794,4.7721,209.55,209.5,13.62472921]
[1731288447015,4.7721,209.55,209.49,13.62472921]
[1731288447599,145.9925,209.56,209.5,13.62472921]
[1731288448095,23.776884,209.55,209.46,13.62472921]
[1731288448316,23.776884,209.55,209.42,11.9377]
[1731288448317,13.62472921,209.52,209.44,13.62472921]
[1731288448825,4.773,209.51,209.45,13.7239856]
[1731288449324,150.7651,209.53,209.47,13.62472921]
[1731288449612,164.38982921,209.53,209.46,13.62472921]
[1731288450115,150.7651,209.53,209.46,13.62472921]
[1731288450620,150.7651,209.53,209.47,13.62472921]
[1731288450823,145.9925,209.53,209.49,13.62472921]
[1731288451118,4.7713,209.59,209.52,13.62472921]
[1731288451317,16.4596,209.6,209.54,13.62472921]
[1731288451705,16.4596,209.6,209.53,13.62472921]
[1731288452120,21.2306,209.6,209.53,13.62472921]
[1731288452321,13.62472921,209.59,209.52,13.62472921]
[1731288452727,34.85532921,209.6,209.52,13.62472921]
[1731288452902,13.62472921,209.56,209.47,11.9348]
[1731288453107,13.62472921,209.56,209.49,13.62472921]
[1731288453415,23.776884,209.54,209.47,13.62472921]
[1731288453608,23.776884,209.54,209.43,4.7746]
[1731288453802,23.776884,209.54,209.45,13.62472921]
[1731288453803,13.62472921,209.53,209.45,13.62472921]
[1731288454006,13.62472921,209.53,209.46,13.62472921]
[1731288454524,145.9925,209.55,209.49,13.62472921]
[1731288454731,145.9925,209.55,209.5,13.62472921]
[1731288455612,145.9925,209.55,209.52,13.62472921]
[1731288455807,4.7718,209.57,209.52,13.62472921]
[1731288456724,4.7718,209.57,209.5,13.62472921]
[1731288458020,145.9925,209.58,209.54,13.62472921]
[1731288458714,4.7716,209.57,209.54,13.62472921]
[1731288459027,23.776884,209.56,209.5,13.62472921]
[1731288459325,183.39411321,209.56,209.48,13.62472921]
[1731288459627,23.776884,209.52,209.48,13.62472921]
[1731288459824,23.776884,209.52,209.44,13.62472921]
[1731288459825,37.40161321,209.52,209.44,13.62472921]
[1731288460128,145.9925,209.51,209.46,13.62472921]
[1731288460310,4.7725,209.53,209.46,13.62472921]
[1731288461624,18.53050771,209.56,209.48,13.62472921]
[1731288462623,150.7636,209.6,209.54,13.62472921]
[1731288462804,150.7636,209.6,209.44,40.7842]
[1731288462805,18.39582921,209.6,209.52,13.62472921]
[1731288463711,23.776884,209.59,209.52,13.62472921]
[1731288463916,23.776884,209.59,209.54,13.62472921]
[1731288464122,4.7711,209.6,209.54,13.62472921]
[1731288465424,23.776884,209.59,209.54,13.62472921]
[1731288465731,23.776884,209.59,209.52,13.62472921]
[1731288466107,23.776884,209.59,209.54,13.62472921]
[1731288466406,159.61722921,209.61,209.51,16.7056]
[1731288466407,145.9925,209.61,209.56,13.62472921]
[1731288466817,28.88632921,209.65,209.57,13.62472921]
[1731288467229,33.79212319,209.65,209.57,13.62472921]
[1731288467421,18.39482921,209.64,209.56,13.62472921]
[1731288467613,13.62472921,209.63,209.56,13.62472921]
[1731288468329,4.7701,209.64,209.58,13.62472921]
[1731288468504,4.7701,209.64,209.57,13.62472921]
[1731288468505,23.776884,209.63,209.57,13.62472921]
[1731288469419,28.546884,209.64,209.57,13.62472921]
[1731288469613,28.546884,209.64,209.58,13.62472921]
[1731288471627,150.7622,209.66,209.61,13.62472921]
[1731288471927,145.9925,209.67,209.63,13.62472921]
[1731288472130,145.9925,209.72,209.66,13.62472921]
[1731288472314,145.9925,209.74,209.68,13.62472921]
[1731288472523,145.9925,209.74,209.6,13.72472921]
[1731288472524,145.9925,209.75,209.72,13.62472921]
[1731288472715,13.62472921,209.78,209.7,13.62472921]
[1731288473417,18.39122921,209.8,209.74,13.62472921]
[1731288473815,18.39122921,209.8,209.72,18.39282921]
[1731288474215,4.7665,209.8,209.74,13.62472921]
[1731288474419,23.776884,209.79,209.74,13.62472921]
[1731288474619,145.9925,209.81,209.74,13.62472921]
[1731288474824,4.7661,209.82,209.76,13.62472921]
[1731288475519,145.9925,209.83,209.78,13.62472921]
[1731288476633,150.757,209.89,209.82,13.62472921]
[1731288476930,145.9925,209.88,209.82,13.62472921]
[1731288478036,23.776884,209.87,209.82,13.62472921]
[1731288478813,23.776884,209.85,209.78,21.79694044]
[1731288479113,23.776884,209.85,209.81,21.79694044]
[1731288479314,23.776884,209.87,209.81,21.79694044]
[1731288480624,23.776884,209.87,209.82,21.79694044]
[1731288481335,23.776884,209.86,209.81,21.79694044]
[1731288482441,23.776884,209.88,209.83,21.79694044]
[1731288482734,23.776884,209.88,209.77,11.9178]
[1731288482735,145.9925,209.89,209.85,21.79694044]
[1731288483035,145.9925,209.89,209.77,11.9178]
[1731288483036,150.7569,209.89,209.83,21.79694044]
[1731288483940,23.776884,209.88,209.85,21.79694044]
[1731288485440,4.7637,209.92,209.85,21.79694044]
[1731288485939,14.87435144,209.94,209.87,21.79694044]
[1731288486142,160.86685144,209.94,209.87,21.79694044]
[1731288486818,23.776884,209.93,209.87,21.79694044]
[1731288487020,45.57382444,209.93,209.85,21.79694044]
[1731288487221,23.776884,209.9,209.83,21.79694044]
[1731288487821,23.776884,209.91,209.84,21.79694044]
[1731288488020,28.540884,209.91,209.84,21.79694044]
[1731288488835,23.776884,209.91,209.85,21.79694044]
[1731288489041,21.79694044,209.88,209.8,21.79694044]
[1731288489340,23.776884,209.87,209.8,21.79694044]
[1731288489525,23.776884,209.87,209.81,21.79694044]
[1731288490042,4.765,209.86,209.81,21.79694044]
[1731288490336,23.776884,209.85,209.79,21.79694044]
[1731288490933,21.79694044,209.81,209.73,21.79694044]
[1731288491133,23.776884,209.79,209.72,21.79694044]
[1731288491865,23.776884,209.79,209.68,23.27]
[1731288491866,45.57382444,209.79,209.71,21.79694044]
[1731288492146,23.776884,209.77,209.71,21.79694044]
[1731288492350,21.79694044,209.75,209.68,6.6052]
[1731288492524,21.79694044,209.75,209.67,21.79694044]
[1731288492525,23.776884,209.74,209.67,21.79694044]
[1731288492840,23.776884,209.78,209.73,21.79694044]
[1731288493045,23.776884,209.79,209.74,21.79694044]
[1731288493845,23.776884,209.79,209.72,21.79694044]
[1731288494136,23.776884,209.77,209.72,21.79694044]
[1731288494541,23.776884,209.77,209.7,21.79694044]
[1731288494835,23.776884,209.75,209.68,21.79694044]
[1731288495034,23.776884,209.75,209.66,21.79694044]
[1731288495035,23.776884,209.73,209.66,21.79694044]
[1731288495238,23.776884,209.69,209.62,21.79694044]
[1731288495425,23.776884,209.69,209.66,21.79694044]
[1731288495616,167.78944044,209.74,209.68,21.79694044]
[1731288495820,6.6258,209.76,209.68,21.79694044]
[1731288495821,21.79694044,209.76,209.68,21.79694044]
[1731288496026,23.776884,209.75,209.68,21.79694044]
[1731288496227,23.776884,209.75,209.68,26.56594044]
[1731288496627,145.9925,209.8,209.74,21.79694044]
[1731288496830,145.9925,209.8,209.73,21.79694044]
[1731288497031,21.79694044,209.8,209.73,21.79694044]
[1731288497446,21.79694044,209.82,209.75,21.79694044]
[1731288497654,11.9119,209.88,209.7,43.73864044]
[1731288497655,21.79694044,209.89,209.81,21.79694044]
[1731288497945,21.79694044,209.87,209.81,21.79694044]
[1731288498145,4.765,209.86,209.81,21.79694044]
[1731288498530,4.765,209.86,209.79,21.79694044]
[1731288498934,23.776884,209.85,209.79,21.79694044]
[1731288499239,21.79694044,209.89,209.81,21.79694044]
[1731288499550,26.56144044,209.89,209.83,21.79694044]
[1731288499933,4.7645,209.89,209.83,21.79694044]
[1731288500731,23.776884,209.88,209.83,21.79694044]
[1731288500931,159.8,209.9,209.83,21.79694044]
[1731288501145,26.56094044,209.91,209.83,21.79694044]
[1731288501351,21.79694044,209.87,209.79,21.79694044]
[1731288501849,21.79694044,209.89,209.81,21.79694044]
[1731288502429,23.776884,209.88,209.81,21.79694044]
[1731288503433,23.776884,209.88,209.81,26.56304044]
[1731288503750,23.776884,209.9,209.84,21.79694044]
[1731288506332,23.776884,209.9,209.84,26.56234044]
[1731288506533,21.79694044,209.94,209.87,21.79694044]
[1731288506841,181.59694044,209.94,209.86,21.79694044]
[1731288507740,23.776884,209.93,209.86,21.79694044]
[1731288507930,45.57382444,209.93,209.86,21.79694044]
[1731288508137,23.776884,209.91,209.85,21.79694044]
[1731288508540,23.776884,209.92,209.85,21.79694044]
[1731288508862,23.776884,209.93,209.88,21.79694044]
[1731288509147,23.776884,209.93,209.85,21.79694044]
[1731288509148,21.79694044,209.92,209.85,21.79694044]
[1731288509352,23.776884,209.91,209.85,21.79694044]
[1731288509553,23.776884,209.91,209.84,21.79694044]
[1731288509729,28.540784,209.91,209.84,21.79694044]
[1731288510053,28.540784,209.91,209.85,21.79694044]
[1731288510751,28.540784,209.91,209.84,21.79694044]
[1731288511147,50.33772444,209.91,209.84,21.79694044]
[1731288511347,50.33772444,209.91,209.82,33.71184044]
[1731288511647,21.79694044,209.89,209.82,11.9149]
[1731288511847,23.776884,209.89,209.83,21.79694044]
[1731288512848,23.776884,209.89,209.82,11.9149]
[1731288513439,23.776884,209.87,209.81,21.79694044]
[1731288514452,183.576884,209.87,209.79,21.79694044]
[1731288514661,183.576884,209.87,209.8,4.7663]
[1731288514844,183.576884,209.87,209.8,18.38634389]
[1731288515231,183.576884,209.87,209.82,13.62004389]
[1731288516053,159.8,209.87,209.85,13.62004389]
[1731288516256,159.8,209.87,209.83,13.62004389]
[1731288516944,159.8,209.87,209.82,16.6808]
[1731288516945,159.8,209.87,209.85,13.62004389]
[1731288517945,159.8,209.87,209.85,18.38524389]
[1731288518163,159.8,209.87,209.85,30.29844389]
[1731288518366,4.7634,209.94,209.85,30.29844389]
[1731288518662,159.8,209.95,209.9,13.62004389]
[1731288518835,4.91790124,209.96,209.92,13.62004389]